Workbook

Sheet selecteer hier uw barbecue
B1: Deze info is van: Feestzaal Katelijnenhof, Heirweg 172, 8800 Roeselare. Contacteer de zaakvoerder: 0475/618058 - info@katelijnenhof.be - web: www.katelijnenhof.be met foto's en volledige prijslijst.
B3: ="Rekenmodule barbecue. " & matrixen!B1 -> Rekenmodule barbecue. Prijzen geldig tot 31/03/2023
F5: kinderen | H5: kinderen | J5: kinderen
D6: =IF(TODAY()>AA11,"Deze module is niet meer geldig.","") ->  | F6: 0 t.e.m. 2 j. 11 maand | H6: 3 j. t.e.m. 5 j. 11 maand | J6: 6 j, t.e.m. 11 jr. 11 maand
B7: Totaal per volwassene: | D7: =SUM(D10:D982) -> 40.70 | F7: 0,00 | H7: =ROUND(D7/3,2) -> 13.57 | J7: =ROUND(D7/2,2) -> 20.35
F8: U kan ook voor de kinderen een kindermenu nemen ( zie een andere rekenmodule)
B10: MAAK STEEDS UW KEUZE in de gele vakken: (scroll naar beneden om meer gegevens in te vullen) Hierboven kunt u uw prijs volgen. | I10: U vindt verder een overzicht van uw selectie
B11: (klik op de gele balk, vervolgens op het pijltje rechts en scroll ev. naar beneden) | D11: prijs pp | F11: Gedetailleerde info | G11: Selecteer hier uw hapjes: | I11: =COUNTA(G13:K23) -> 0 | J11: hapjes geselecteerd. | AA11: =matrixen!B1 -> Prijzen geldig tot 31/03/2023
B13: Maak in dit vak uw keuze voor het aperitief | D13: =VLOOKUP(B13,matrixen!B11:I19,8,FALSE) -> 0.00 | F13: =HLOOKUP($B$13,matrixen!$T$14:$AB$28,2,FALSE) -> 0 | AA13: =matrixen!B11 -> Maak in dit vak uw keuze voor het aperitief
B14: Maak in dit vak uw keuze voor het aperitief | F14: =HLOOKUP($B$13,matrixen!$T$14:$AB$28,3,FALSE) -> 0 | AA14: =matrixen!B12 -> 1 aperitief per persoon
B15: ="U selecteerde tot nu " & COUNTA(G13:K23)& " hapjes." -> U selecteerde tot nu 0 hapjes. | D15: =IF(IF(B13=matrixen!N14,('selecteer hier uw barbecue'!I11-4)*matrixen!I47,I11*matrixen!I47)<0,0,IF(B13=matrixen!N14,('selecteer hier uw barbecue'!I11-4)*matrixen!I47,I11*matrixen!I47)) -> 0.00 | F15: =HLOOKUP($B$13,matrixen!$T$14:$AB$28,4,FALSE) -> 0 | AA15: =matrixen!B13 -> 2 aperitieven per persoon
B16: =IF(B13=matrixen!N14,"U koos receptie E en daar zijn 4 hapjes inbegrepen. Selecteer er dus zeker 4!","") ->  | F16: =HLOOKUP($B$13,matrixen!$T$14:$AB$28,5,FALSE) -> 0 | AA16: =matrixen!B14 -> Receptie E
F17: =HLOOKUP($B$13,matrixen!$T$14:$AB$28,6,FALSE) -> 0 | AA17: =matrixen!B15 -> Receptie A
F18: =HLOOKUP($B$13,matrixen!$T$14:$AB$28,7,FALSE) -> 0 | AA18: =matrixen!B16 -> 0
B19: Indien een genodigde een extra aperitief bestelt of een aperitief wenst die niet in de prijs begrepen is dan: | F19: =HLOOKUP($B$13,matrixen!$T$14:$AB$28,8,FALSE) -> 0 | AA19: =matrixen!B17 -> 0
B20: De gast die een extra aperitief bestelt betaalt deze zelf | F20: =HLOOKUP($B$13,matrixen!$T$14:$AB$28,9,FALSE) -> 0 | AA20: =matrixen!B18 -> 0
B21: De gast die een extra aperitief bestelt betaalt deze zelf | F21: =HLOOKUP($B$13,matrixen!$T$14:$AB$28,10,FALSE) -> 0 | AA21: =matrixen!B19 -> 0
B22: De gast die niet inbegrepen aperitief bestelt betaalt deze zelf (vb: sterke drank) | F22: =HLOOKUP($B$13,matrixen!$T$14:$AB$28,11,FALSE) -> 0
B23: Alle extra aperitief komt op de algemene rekening. | F23: =HLOOKUP($B$13,matrixen!$T$14:$AB$28,12,FALSE) -> 0 | AA23: =matrixen!B23 -> Schuimwijn van het huis (reeds inbegrepen)
B24: Let op: indien slecht weer (vanaf 5 Beaufort of bij hevige neerslag) kunnen wij beslissen om het vlees | F24: =HLOOKUP($B$13,matrixen!$T$14:$AB$28,13,FALSE) -> 0 | G24: =IF(F20="tapenades", matrixen!AM28,"") ->  | AA24: =matrixen!B24 -> Cava
B25: te bakken in de keuken binnen. We doen er echter alles aan om de barbecue buiten te laten doorgaan. | F25: =HLOOKUP($B$13,matrixen!$T$14:$AB$28,14,FALSE) -> 0 | AA25: =matrixen!B25 -> Champagne
F26: =HLOOKUP($B$13,matrixen!$T$14:$AB$28,15,FALSE) -> 0 | AA26: =matrixen!B26 -> 0
B28: Stel zelf uw barbecue samen!
B29: In de barbecues zijn steeds groenten voorzien, koude aardappelen en/of aardappel in de pel. Ook de sausjes zijn inbegrepen. | AA29: =matrixen!B44 -> Maak hier uw keuze voor extra hapjes bij het aperitief
B30: Afhankelijk van de soort ingrediënten die u kiest, verandert de prijs van de barbecue. De volwassenen verkrijgen steeds 5 verschillende soorten. De kinderen 3. | AA30: =matrixen!B45 -> Nootjes, chips en zoutkoekjes zoveel u wenst, per pers.
AA31: =matrixen!B46 -> Rauwe groenten (wortel, bloemkool, cocktailsaus) prijs per persoon:
B32: Kies hier eerst uw aardappelbereiding | F32: ="Als voorgerecht kunt u een halve kreeft kiezen. Dit telt als 2 soorten vis en er is een extra suppl. Van € "&matrixen!H133&",00" -> Als voorgerecht kunt u een halve kreeft kiezen. Dit telt als 2 soorten vis en er is een extra suppl. Van € 5,00 | AA32: =matrixen!B47 -> aperitiefglaasjes per stuk
B33: Aardappel in de pel | D33: =VLOOKUP(B33,matrixen!B100:G103,6,FALSE) -> inbegrepen | F33: Wij wensen geen kreeft | I33: =IF(F33=AA40,2,0) -> 0 | R33: =IF(F33=matrixen!H132,matrixen!H133,0) -> 0 | AA33: =matrixen!B48 -> aperitiefglaasjes per stuk
B34: Aardappel in de pel | AA34: =matrixen!B49 -> aperitiefglaasjes per stuk
B35: Selecteer hier de samenstelling van uw barbecue. Indien u bij onderstaande lijst blijft, kost de barbecue: | D35: =matrixen!B133 -> 36.90 | F35: ="Selecteert u één of meer van onderstaande specialiteiten, is er een supplement van "&matrixen!E133&" euro pp t.o.v. de basisprijs" -> Selecteert u één of meer van onderstaande specialiteiten, is er een supplement van 6 euro pp t.o.v. de basisprijs | Q35: =IF(AND(F36<>"",F36<> matrixen!E$112),1,0) -> 0 | R35: =IF(Q35+Q36+Q37+Q38+Q39>0,matrixen!E133,0) -> 0 | AA35: =matrixen!B50 -> 0
A36: 1 | B36: Kies uit deze vleesspecialiteiten | C36: =IF(AND(B36 <>"",B36<> matrixen!B$112),1,0) -> 0 | E36: 1 | F36: supp. visgerechten / rund | J36: U mag tegelijk ook | Q36: =IF(AND(F37<>"",F37<> matrixen!E$112),1,0) -> 0 | AA36: =matrixen!B51 -> wachtbordje met vispasteitje
A37: 2 | B37: Kies uit deze vleesspecialiteiten | C37: =IF(AND(B37 <>"",B37<> matrixen!B$112),1,0) -> 0 | E37: 2 | F37: supp. visgerechten / rund | J37: uit de vorige categorie kiezen | Q37: =IF(AND(F38<>"",F38<> matrixen!E$112),1,0) -> 0 | AA37: =matrixen!B52 -> wachtbordje van reuzentoost met gerookte zalm
A38: 3 | B38: Kies uit deze vleesspecialiteiten | C38: =IF(AND(B38 <>"",B38<> matrixen!B$112),1,0) -> 0 | E38: 3 | F38: supp. visgerechten / rund | Q38: =IF(AND(F39<>"",F39<> matrixen!E$112),1,0) -> 0 | AA38: =matrixen!B53 -> wachtbordje van lauw slaatje met gerookte zalm en scampi's
A39: 4 | B39: Kies uit deze vleesspecialiteiten | C39: =IF(AND(B39 <>"",B39<> matrixen!B$112),1,0) -> 0 | D39: =IF(R33>0,R33+matrixen!E133,R35) -> 0.00 | E39: 4 | F39: supp. visgerechten / rund | Q39: =IF(AND(F40<>"",F40<> matrixen!E$112),1,0) -> 0 | AA39: Wij wensen geen kreeft
A40: 5 | B40: Kies uit deze vleesspecialiteiten | C40: =IF(AND(B40 <>"",B40<> matrixen!B$112),1,0) -> 0 | E40: 5 | F40: supp. visgerechten / rund | AA40: =matrixen!H132 -> 1/2 warme kreeft i.p.v. 2 andere soorten | AE40: =IF($D$39>0,AF40,"") ->  | AF40: =matrixen!E121 -> U mag 2 warme sausen kiezen als u ook vis of rund kiest!
B41: Kies uit deze vleesspecialiteiten | F41: supp. visgerechten / rund | AF41: =matrixen!E122 -> bearnaise
B42: =IF(C36+C37+C38+C39+C40+Q35+Q36+Q37+Q38+Q39+G4+I33>5,"U koos meer dan 5 soorten, er wordt een meerpijs gerekend.",IF(C36+C37+C38+C39+C40+Q35+Q36+Q37+Q38+Q39+G4+I33=5,"U koos nu 5 gerechten. Indien gewenst kunt u nog steeds wijzigen","Gelieve 5 soorten te selecteren")) -> Gelieve 5 soorten te selecteren | D42: =IF(C36+C37+C38+C39+C40+Q35+Q36+Q37+Q38+Q39+G4+I33>5,(C36+C37+C38+C39+C40+Q35+Q36+Q37+Q38+Q39+G4+I33-5)*matrixen!G105,0) -> 0.00 | F42: ="Er zijn 2 warme sausen inbegrepen als u ook vis of rund kiest! Anders is er een supplement van € " & matrixen!G106 -> Er zijn 2 warme sausen inbegrepen als u ook vis of rund kiest! Anders is er een supplement van € 2,5 | AA42: =matrixen!B100 -> Koude aardappelen | AF42: =matrixen!E123 -> romige portosaus
D43: =IF(AND(OR(F43<>0,F44<>0),D39=0),matrixen!G106,0) -> 0.00 | AA43: =matrixen!B101 -> Aardappel in de pel | AF43: =matrixen!E124 -> pepersaus
B44: Selecteer hier uw formule van de dranken tijdens de barbecue. | AA44: =matrixen!B102 -> 1/2 koude aardappelen en 1/2 aardappel in de pel | AF44: =matrixen!E125 -> mosterd en look,
B45: Huiswijn, bieren en frisdranken als forfait | D45: =VLOOKUP(B45,matrixen!B139:M141,12,FALSE) -> 3.80 | AA45: =matrixen!B103 -> frietjes (supplement) | AF45: =matrixen!E126 -> champignonroomsaus
B46: Huiswijn, bieren en frisdranken als forfait | AF46: =matrixen!E127 -> kreeftsaus met groentebrunoise
F47: extra info | AA47: =matrixen!B112 -> Kies uit deze vleesspecialiteiten | AF47: =matrixen!E128 -> kreeftsaus zonder groenten
B48: Selecteer hier uw dessert. | AA48: =matrixen!B113 -> - Worst | AF48: =matrixen!E129 -> saffraansaus
B49: Nog geen dessert geselecteerd | D49: =VLOOKUP(B49,dessert,8,FALSE) -> 0.00 | F49: =VLOOKUP($B$49,dessert,10,FALSE) -> 0 | AA49: =matrixen!B114 -> - Kippenboutjes | AF49: =matrixen!E130 -> bieslooksaus
B50: Nog geen dessert geselecteerd | F50: =VLOOKUP($B$49,dessert,11,FALSE) -> 0 | AA50: =matrixen!B115 -> - Gemarineerde kotelet
B51: =IF(B49=matrixen!B147,"Kies hier nu een aantal dessertjes. 4 zijn reeds inbegrepen. Extra aan € " & matrixen!I143&",00/stuk. U selecteerde er tot nu: "&COUNTA(B52:B58),"") ->  | F51: =VLOOKUP($B$49,dessert,12,FALSE) -> 0 | AA51: =matrixen!B116 -> - Lamskoteletjes
F52: =VLOOKUP($B$49,dessert,13,FALSE) -> 0 | AA52: =matrixen!B117 -> - Varkensbrochet
F53: =VLOOKUP($B$49,dessert,14,FALSE) -> 0 | AA53: =matrixen!B118 -> - Kasselrib
F54: =VLOOKUP($B$49,dessert,15,FALSE) -> 0 | AA54: =matrixen!B119 -> - Ribbetjes
D55: =IF(COUNTA(B52:B58)*matrixen!I143 - IF(B49=matrixen!B147,matrixen!I143*4,0)<0,0,COUNTA(B52:B58)*matrixen!I143 - IF(B49=matrixen!B147,matrixen!I143*4,0)) -> 0.00 | F55: =IF(D55>0,"U selecteerde meer dan 4 stuks dessert. Vandaar het supplement.","") ->  | AA55: =matrixen!B120 -> - Worst
F56: =IF(AND(D55>0,B49<>matrixen!B147),"U moet de selectie links wissen. U koos geen dessertbord.","") ->  | AA56: =matrixen!B121 -> - Kippenboutjes
D58: =VLOOKUP($B$62,matrixen!$A$176:$P$178,15,FALSE) -> 0.00 | E58: =VLOOKUP($B$62,matrixen!$A$176:$P$178,16,FALSE) -> direct afrekenen | F58: Vegetariërs: | G58: nee | H58: Speciale dieten: | I58: nee | J58: Halal bereidingen: | K58: nee | AB58: =matrixen!E112 -> supp. visgerechten / rund
B59: Selecteer hier uw koffie | AB59: =matrixen!E113 -> - Brochette met gepelde scampi's
B60: Nog geen keuze gemaakt | D60: =VLOOKUP(B60,matrixen!B169:I172,8,FALSE) -> 0.00 | F60: Feest met discobar: | G60: nee | H60: Allergenen: | I60: nee | J60: =IF($I$60="ja",matrixen!A182,"") ->  | AB60: =matrixen!E114 -> - Stukje zalm en papillotte
B61: Nog geen keuze gemaakt | D61: =SUM(C72:C75) -> 0 | G61: =IF(G60="ja",matrixen!A186,"") ->  | J61: =IF($I$60="ja",matrixen!A183,"") ->  | AB61: =matrixen!E115 -> - Stukje victoriabaarsfilet met fijne kruiden en papillotte
B62: Elke gast die na de maaltijd een drankje bestelt rekent direct af aan de bar | G62: Keuze achtergrondmuziek: | H62: Geen voorkeur | AB62: =matrixen!E116 -> - Forel met fijne groenten en papillotte
B63: Elke gast die na de maaltijd een drankje bestelt rekent direct af aan de bar | AB63: =matrixen!E117 -> - Witte zalm in een jasje van ham
E64: Eventuele datum van het feest: | H64: Overzicht van uw selectie: | AB64: =matrixen!E118 -> - Côte à l’os
F65: Het exacte aantal personen en de tafelschikking dient ons meegedeeld te worden de vrijdag van het weekend voordien. | H65: =IF(B13=matrixen!B11,"",B13) ->  | L65: =D13 -> 0.00 | AA65: =matrixen!B139 -> Huiswijn, bieren en frisdranken als forfait | AB65: =matrixen!E119 -> - Steak
E66: geraamd aantal volwassenen: | F66: 10 | H66: =IF(L66>0,B88,"") ->  | J66: =IF(L66>0,"geldt alleen bij recepties!!!","") ->  | L66: =D88 -> 0.00 | AA66: =matrixen!B140 -> Domaine Joel Delauny Touraine en/of Château Reynier, Bordeaux superieur, bieren en frisdranken
E67: geraamd aantal kinderen 6 j. t.e.m. 11 jr. 11 maand: | AA67: =matrixen!B141 -> 0
E68: geraamd aantal kinderen 3 j. t.e.m. 5 j. 11 maand:
E69: geraamd aantal kinderen 0 t.e.m. 2 j. 11 maand: | H69: =IF(L69>0,B33,"") -> Aardappel in de pel | L69: =D33 -> inbegrepen | AA69: =matrixen!B142 -> 0 | AI69: matrix:
B70: Late night snacks: | H70: groenten en sausen | L70: inbegrepen | AA70: =matrixen!B143 -> supplement per stukje gebak: | AH70: =matrixen!M22 -> Roomijs | AI70: =IF($B$49=matrixen!$B$147,'selecteer hier uw barbecue'!AH70,"") -> 
E71: uur van aankomst: | AA71: =matrixen!B144 -> 0 | AH71: =matrixen!M23 -> Bruine chocolademousse | AI71: =IF($B$49=matrixen!$B$147,'selecteer hier uw barbecue'!AH71,"") -> 
C72: =IFERROR(VLOOKUP(B71,matrixen!$A$301:$E$305,5,FALSE),0) -> 0 | E72: aan tafel om: | L72: =F43 -> 0 | AA72: =matrixen!B145 -> Nog geen dessert geselecteerd | AH72: =matrixen!M24 -> Pasteis de nata | AI72: =IF($B$49=matrixen!$B$147,'selecteer hier uw barbecue'!AH72,"") -> 
C73: =IFERROR(VLOOKUP(B72,matrixen!$A$301:$E$305,5,FALSE),0) -> 0 | L73: =F44 -> 0 | AA73: =matrixen!B146 -> IJstaart ambachtelijk, speciale vorm, smaak naar keuze | AH73: =matrixen!M25 -> Chocoladebavarois | AI73: =IF($B$49=matrixen!$B$147,'selecteer hier uw barbecue'!AH73,"") -> 
C74: =IFERROR(VLOOKUP(B73,matrixen!$A$301:$E$305,5,FALSE),0) -> 0 | E74: Uw naam: | H74: =IF(B36=matrixen!$B$112,"",B36) ->  | J74: =IF(F36=matrixen!$E$112,"",F36) ->  | AA74: =matrixen!B147 -> Stel hieronder uw mini dessertbordje samen met minstens 4 dessertjes | AH74: =matrixen!M26 -> Miserable | AI74: =IF($B$49=matrixen!$B$147,'selecteer hier uw barbecue'!AH74,"") -> 
B75: Keuze mogelijkheden: | C75: =IFERROR(VLOOKUP(B74,matrixen!$A$301:$E$305,5,FALSE),0) -> 0 | E75: Adres: | H75: =IF(B37=matrixen!$B$112,"",B37) ->  | J75: =IF(F37=matrixen!$E$112,"",F37) ->  | AA75: =matrixen!B148 -> Coupe met vers fruit en verse slagroom. | AH75: =matrixen!M27 -> glaasje fruitsla met perensorbet | AI75: =IF($B$49=matrixen!$B$147,'selecteer hier uw barbecue'!AH75,"") -> 
B76: =matrixen!A301 & " aan " & matrixen!E301 & " euro" -> Croque uit het vuistje aan 2,8 euro | E76: Stad: | H76: =IF(B38=matrixen!$B$112,"",B38) ->  | J76: =IF(F38=matrixen!$E$112,"",F38) ->  | AA76: =matrixen!B149 -> Aardbeiensoepje met sinaasappel in seizoen | AH76: =matrixen!M28 -> Witte chocolademousse | AI76: =IF($B$49=matrixen!$B$147,'selecteer hier uw barbecue'!AH76,"") -> 
B77: =matrixen!A302 & " aan " & matrixen!E302 & " euro" -> Pizza Margherita aan 4,5 euro | E77: Tel nr: | H77: =IF(B39=matrixen!$B$112,"",B39) ->  | J77: =IF(F39=matrixen!$E$112,"",F39) ->  | AA77: =matrixen!B150 -> Coupe met aardbeien en verse slagroom. | AH77: =matrixen!M29 -> Roomsoes met warme chocoladesaus | AI77: =IF($B$49=matrixen!$B$147,'selecteer hier uw barbecue'!AH77,"") -> 
B78: =matrixen!A303 & " aan " & matrixen!E303 & " euro" -> Belegde broodjes (2 pp) aan 4,5 euro | E78: email: | H78: =IF(B40=matrixen!$B$112,"",B40) ->  | J78: =IF(F40=matrixen!$E$112,"",F40) ->  | AA78: =matrixen!B151 -> Dame blanche | AH78: =matrixen!M30 -> Tiramisu | AI78: =IF($B$49=matrixen!$B$147,'selecteer hier uw barbecue'!AH78,"") -> 
B79: =matrixen!A304 & " aan " & matrixen!E304 & " euro" -> Braadworst aan 3 euro | E79: reden feest: | H79: Basisprijs BBQ: | I79: =D35 -> 36.90 | K79: =IF(L79>0,"supplement vis:","") ->  | L79: =D39 -> 0.00 | AA79: =matrixen!B152 -> - frambozentaart | AH79: =matrixen!M31 -> Javanais | AI79: =IF($B$49=matrixen!$B$147,'selecteer hier uw barbecue'!AH79,"") -> 
B80: =matrixen!A305 & " aan " & matrixen!E305 & " euro" -> Scampi (3pp) Nantua met farfale en broccoli aan 4,5 euro | E80: Opmerking: | H80: =B45 -> Huiswijn, bieren en frisdranken als forfait | L80: =D45 -> 3.80 | AA80: =matrixen!B153 -> - progres | AH80: =matrixen!M32 -> Gebak peer-caramel | AI80: =IF($B$49=matrixen!$B$147,'selecteer hier uw barbecue'!AH80,"") -> 
E81: geraamde totalen uit andere rekenbladen: | H81: =IF(L81>0,B49,"") ->  | L81: =D49 -> 0.00 | AA81: =matrixen!B154 -> - fruitgebakje | AH81: =matrixen!M33 -> mini fruittaartje | AI81: =IF($B$49=matrixen!$B$147,'selecteer hier uw barbecue'!AH81,"") -> 
C82: (vb: kindermenus) | H82: =IF(L82>0,B60,"") ->  | L82: =D60 -> 0.00 | AA82: =matrixen!B155 -> - biscuit crème fraiche met coulis
E83: Geschat factuurtotaal: | F83: =Reservatievoorstel!I13 -> € 1,250.00 | H83: Keuze drank na de maaltijd: | L83: =E58 -> direct afrekenen | AA83: =matrixen!B156 -> - warme appeltaart met een bolletje ijs
F84: (Gebaseerd op de door u ingebrachte gegevens) | AA84: =matrixen!B157 -> - zwarte woudtaart
E85: korting bij contante betaling: | F85: =F83*0.02 -> € 25.00 | AA85: =matrixen!B158 -> Sabayon met rood fruit
B86: Mogelijke supplementen bij de recepties | E86: saldo: | F86: =F83-F85 -> € 1,225.00 | H86: Gaat u akkoord met de algemene verkoopsvoorwaarden? | K86: ja | AA86: =matrixen!B159 -> 0
J87: ="Wenst u exclusiviteit voor het volledige domein mits meerprijs van € "&matrixen!F222&" ?" -> Wenst u exclusiviteit voor het volledige domein mits meerprijs van € 750 ? | K87: nee | L87: =IF(K87="ja",matrixen!F222,0) -> 0 | AA87: =matrixen!B160 -> Basis dessertbuffet met:
B88: Schuimwijn van het huis (reeds inbegrepen) | D88: =VLOOKUP(B88,matrixen!B23:I26,8,FALSE) -> 0.00 | J88: Voorkeur tafelschikking: | K88: geen voorkeur | AA88: =matrixen!B161 -> Uitgebreid dessertbuffet met:
B89: Schuimwijn van het huis (reeds inbegrepen) | K89: geen voorkeur | AA89: =matrixen!B162 -> Uitgebreid en luxueus dessertbuffet met:
J90: Wijze van betaling: | K90: Betaling op de dag zelf (cash of bancontact), u bekomt 2% korting op het totaal | AA90: =matrixen!B163 -> 0
AA91: =matrixen!B164 -> 0 | AB91: =matrixen!B169 -> Nog geen keuze gemaakt
J92: Wenst u een factuur? | K92: nee | AB92: =matrixen!B170 -> Koffie 3 X bediend
E93: =SUMIF(B94:B98,"warme toostjes per stuk",D94:D98) -> 0 | F93: =IF($E$93>0,matrixen!B58,"") ->  | G93: =SUMIF(B94:B98,"koude toostjes per stuk",D94:D98) -> 0 | H93: =IF($G$93>0,matrixen!E58,"") ->  | AB93: =matrixen!B171 -> Koffie 3 X bediend met koekjes
F94: =IF($E$93>0,matrixen!B59,"") ->  | H94: =IF($G$93>0,matrixen!E59,"") ->  | I94: =SUMIF(B94:B98,"aperitiefglaasjes per stuk",D94:D98) -> 0 | J94: =IF($I$94>0,matrixen!H59,"") ->  | AB94: =matrixen!B172 -> Koffie 3 X bediend met pralines
F95: =IF($E$93>0,matrixen!B60,"") ->  | H95: =IF($G$93>0,matrixen!E60,"") ->  | J95: =IF($I$94>0,matrixen!H60,"") ->  | AA95: =matrixen!B173 -> 0
F96: =IF($E$93>0,matrixen!B61,"") ->  | H96: =IF($G$93>0,matrixen!E61,"") ->  | J96: =IF($I$94>0,matrixen!H61,"") ->  | AA96: =matrixen!A176 -> Alle drank na de maaltijd komt op één rekening en wordt door de organisator van het feest betaald
F97: =IF($E$93>0,matrixen!B62,"") ->  | H97: =IF($G$93>0,matrixen!E62,"") ->  | J97: =IF($I$94>0,matrixen!H62,"") ->  | AA97: =matrixen!A177 -> Elke gast die na de maaltijd een drankje bestelt rekent direct af aan de bar
F98: =IF($E$93>0,matrixen!B63,"") ->  | H98: =IF($G$93>0,matrixen!E63,"") ->  | J98: =IF($I$94>0,matrixen!H63,"") ->  | AA98: =matrixen!A178 -> Forfait voor drank naar believen (alle bieren en frisdranken van de drankkaart in de zaal) na een maaltijd. pp:
F99: =IF($E$93>0,matrixen!B64,"") ->  | H99: =IF($G$93>0,matrixen!E64,"") -> 
AA100: =matrixen!A204 -> ja
AA101: =matrixen!A205 -> nee
AA103: geen voorkeur
AA104: zoveel mogelijk ronde tafels van 6 à 8 personen
AA105: liever lange tafels ev. In U-vorm of H-vorm.
AA107: =matrixen!A380 -> Betaling op de dag zelf (cash of bancontact), u bekomt 2% korting op het totaal
AA108: =matrixen!A381 -> Storting op BE 48 4631 1391 2127 min. 7 dagen voor het feest, 2% korting
AA109: =matrixen!A382 -> Betaling na het feest. Gelieve 40 % voorschot te storten op BE48 4631 1391 2127. Geen korting.

Sheet matrixen (hidden)
B1: Prijzen geldig tot 31/03/2023 | L1: lam, zwanen enz.. . Met foto suppl. | P1: 15.00
A2: Deze bladen kopiëren en waarden plakken en alle prijzen van de rekenmodules worden aangepast | L2: Foto op de taart: suppl. € | O2: 1.00 | P2: per stuk taart en € | R2: 12.00 | S2: per foto
B4: Minimaal verbruik feest | E4: € 1,250.00
B11: Maak in dit vak uw keuze voor het aperitief | M11: Aanpassingen in de omschrijving van de receptie doen IN het kader en alles blijft ok. Allemaal in 1 keer behalve rec & bb borrels | V11: Omschrijving kan in het kader.
B12: 1 aperitief per persoon | I12: € 6.00 | M12: Het tabblad recepties en babyb bij aanpassingen niet meenemen wnat daar staan extra rfecepties op. | V12: Recepties hier worden overal aangepast.
B13: 2 aperitieven per persoon | I13: € 12.00 | M13: Dat moet dus apart worden aangepast.
B14: Receptie E | I14: € 12.60 | K14: Maak in dit vak uw keuze voor het aperitief | L14: 1 aperitief per persoon | M14: 2 aperitieven per persoon | N14: Receptie E | O14: Receptie A | T14: Maak in dit vak uw keuze voor het aperitief | U14: 1 aperitief per persoon | V14: 2 aperitieven per persoon | X14: Receptie E | AB14: Receptie A
B15: Receptie A | I15: € 10.00 | L15: 1 per persoon, | M15: 2 per persoon, | N15: Uitgebreide receptie | O15: Basis receptie. | U15: vrije keuze | V15: vrije keuze | X15: dranken inbegrepen | AB15: dranken inbegrepen | AM15: Keuze aperitiefhapjes:
L16: eventueel tweede wordt | M16: eventueel derde wordt | N16: met 4 aperitiefglaasjes | O16: Dranken 2 uur inbegrepen. | U16: Porto rood | V16: Porto rood | X16: gedurende 2 uur | AB16: gedurende 2 uur | AM16: BORD
L17: direct afgerekend of | M17: direct afgerekend of | N17: en drank gedurende 2 uur. | O17: Met tapenades: | U17: Martini | V17: Martini | X17: met huis schuimwijn, | AB17: met huis schuimwijn, | AM17: Bord met rauwe groenten en cocktailsaus (wortel, bloemkool, radijs)
L18: komt op 1 rekening | M18: komt op 1 rekening | O18: tonijn / pesto spread rosso /zoete peper roomkaas | U18: Kir | V18: Kir | X18: frisdranken en | AB18: frisdranken en | AM18: Bord met olijven, kaasjes en salamietjes
U19: Frisdrank | V19: Frisdrank | X19: bieren naar believen. | AB19: bieren naar believen. | AM19: Bord met 3 tapenades (tonijn / pesto spread rosso /zoete peper roomkaas)
U20: Bieren | V20: Bieren | AM20: KOUD
U21: nootjes en chips inbegr. | V21: nootjes en chips inbegr. | X21: Assortiment van 4 | AB21: Ook inbegrepen: | AM21: crunchy sushi
M22: Roomijs | U22: TIP: | V22: TIP: | X22: aperitiefglaasjes | AB22: tapenades | AM22: luzerne met gerookte zalm, eitjes van vliegende vis in wasabi
B23: Schuimwijn van het huis (reeds inbegrepen) | I23: € 0.00 | M23: Bruine chocolademousse | U23: Receptie A | V23: Receptie A | X23: inbegrepen. | AB23: nootjes en chips | AM23: preischeuten met tijgergarnalen en mini tomaat
B24: Cava | I24: € 3.50 | M24: Pasteis de nata | U24: kost evenveel als | V24: kost evenveel als | X24: Maak uw keuze | AM24: aperoglaasje parmaham met meloenbolletjes
B25: Champagne | I25: € 7.00 | M25: Chocoladebavarois | U25: 2 aperitieven pp. | V25: 2 aperitieven pp. | X25: hier rechts! => | AM25: ganache van foie gras met frambozenconfituur en amandelbrood
M26: Miserable | U26: En dan is de drank naar | V26: En dan is de drank naar | AM26: aperoglaasje parmaham met espuma van mango
B27: Schuimwijn brut | I27: € 0.00 | M27: glaasje fruitsla met perensorbet | U27: believen! | V27: believen! | X27: Liever meer dan 4 hapjes? Geen probleem. | AM27: verse oester
M28: Witte chocolademousse | U28: En met tapenades! | V28: En met tapenades! | X28: Het supplement bedraagt € 1,60 per hapje | AM28: Taboulé met gerookte forel
M29: Roomsoes met warme chocoladesaus | T29: Menu's BBQ | AM29: Haringhapje met curry
B30: Dessertbuffet zonder maaltijd: | I30: € 18.00 | M30: Tiramisu | AM30: Mini bagel met zalm en kruidenkaas
B31: Koffie 3 X bediend | I31: € 2.90 | M31: Javanais | S31: 1 | T31: Dit menu kunt u samenstellen en wijzigen via de tool Barbecue's | AM31: SOEP
M32: Gebak peer-caramel | S32: 2 | T32: Prijs per volwassene: | Z32: € 50.60 | AM32: Kreeftensoep
M33: mini fruittaartje | S33: 3 | AM33: Aspergeroomsoep met koornbloemblaadjes
B34: 1 aperitief per persoon, vrije keuze | I34: € 6.00 | M34: frambozenbavarois | S34: 4 | T34: 1 aperitief per persoon | V34: vrije keuze | AA34: € 6.00 | AM34: Pompoensoep (sept. okt. nov.)
B35: Pineau des charentes wit | I35: € 6.00 | S35: 5 | T35: Nootjes, chips en zoutkoekjes zoveel u wenst, per pers. | AM35: Kervelroomsoep met gerookte eend
B36: Maison (basis safari) | I36: € 6.00 | S36: 6 | AM36: Preiroomsoep met broccoligarnituur en gebakken spekjes
B37: Kir royale | I37: € 6.00 | S37: 7 | AM37: Soepje van boschampignons met gerookte paling
B38: Sherry dry | I38: € 6.00 | S38: 8 | T38: - Worst | AA38: 36.90 | AM38: WARM
B39: Porto | I39: € 6.00 | S39: 9 | T39: - Kippenboutjes | AM39: mini hot-dog
B40: Martini (wit/rood) | I40: € 6.00 | S40: 10 | T40: - Gemarineerde kotelet | AM40: Breydelspek met mosterdroomsaus
B41: Kir | I41: € 6.00 | S41: 11 | T41: - Lamskoteletjes | AM41: aperoglaasje scampi
B42: Schuimwijn | I42: € 6.00 | S42: 12 | T42: - Varkensbrochet | AM42: Warme dagvis met curry
S43: 13 | T43: Koude aardappelen | AM43: een gevuld toastcupje
B44: Maak hier uw keuze voor extra hapjes bij het aperitief | S44: 14 | T44: Groenten en sausen | AM44: oester met champagnesaus
B45: Nootjes, chips en zoutkoekjes zoveel u wenst, per pers. | I45: gratis | S45: 15 | AM45: garnaal in filo
B46: Rauwe groenten (wortel, bloemkool, cocktailsaus) prijs per persoon: | I46: € 1.60 | S46: 16 | T46: Huiswijn, bieren en frisdranken als forfait | AA46: 3.80 | AM46: mini croque
B47: aperitiefglaasjes per stuk | I47: € 1.60 | S47: 17 | AM47: mini loempia
B48: aperitiefglaasjes per stuk | I48: € 1.60 | S48: 18 | T48: Koffie 3 X bediend met koekjes | AA48: 3.90 | AM48: mini kippenboutje
B49: aperitiefglaasjes per stuk | I49: € 1.60 | AM49: Gepaneerde garnalen butterfly
S50: 1 | T50: Dit menu kunt u samenstellen en wijzigen via de tool Barbecue's | AM50: DESSERT
B51: wachtbordje met vispasteitje | I51: € 4.00 | S51: 2 | T51: Prijs per volwassene: | Z51: € 56.60 | AM51: mini dame blanche (1 bol in wijnglas)
B52: wachtbordje van reuzentoost met gerookte zalm | I52: € 4.00 | S52: 3 | AM52: Bruine chocolademousse
B53: wachtbordje van lauw slaatje met gerookte zalm en scampi's | I53: € 6.00 | S53: 4 | T53: 2 aperitieven per persoon | W53: vrije keuze | AA53: € 12.00 | AM53: Pasteis de nata
S54: 5 | T54: Nootjes, chips en zoutkoekjes zoveel u wenst, per pers. | AM54: Chocoladebavarois
S55: 6 | AM55: Miserable
S56: 7 | AM56: mini fruittaartje
S57: 8 | T57: - Worst | AA57: 36.90 | AM57: glaasje fruitsla met perensorbet
B58: Keuze warme toostjes | E58: Keuze koude toostjes | H58: Keuze aperoglaasjes | S58: 9 | T58: - Kippenboutjes | AM58: Witte chocolademousse
B59: (bij reservatie te bepalen) | E59: (bij reservatie te bepalen) | H59: (bij reservatie te bepalen) | S59: 10 | T59: - Gemarineerde kotelet | AM59: Roomsoes met warme chocoladesaus
B60: kippenbilletjes | E60: toost garnaal koud | H60: aperoglaasje eendenmousse | S60: 11 | T60: - Lamskoteletjes | AM60: Tiramisu
B61: toostcupje | E61: toost gerookte zalm koud | H61: aperoglaasje gerookte zalm | S61: 12 | T61: - Varkensbrochet | AM61: Gebak peer-caramel
B62: garnaal in filo | E62: toost krabsla koud | H62: aperoglaasje mousse van krab | S62: 13 | T62: Koude aardappelen | AM62: javanais
B63: mini croque | E63: toost eendenpastei koud | H63: aperoglaasje tomaat / garnaal | S63: 14 | T63: Groenten en sausen | AM63: frambozenbavarois
B64: scampi enz…. | H64: en nog veel mogelijkheden | S64: 15
S65: 16 | T65: Huiswijn, bieren en frisdranken als forfait | AA65: 3.80
S66: 17
S67: 18 | T67: Koffie 3 X bediend met koekjes | AA67: 3.90
S69: 1 | T69: Dit menu kunt u samenstellen en wijzigen via de tool Barbecue's
D70: Maak hier uw keuze | S70: 2 | T70: Prijs per volwassene: | Z70: € 44.60
B71: Belegd met: | D71: parmaham | G71: € | H71: 4.50 | S71: 3
D72: grijze garnalen | G72: € | H72: 4.20 | S72: 4 | T72: 0 | AA72: € 0.00
D73: gerookte zalm | G73: € | H73: 2.50 | S73: 5 | T73: en diverse warme en koude hapjes
D74: zalmsalade | G74: € | H74: 2.50 | S74: 6 | T74: of Receptie E met aperitiefglaasjes
D75: gerookte ham | G75: € | H75: 2.50 | S75: 7
D76: vissla | G76: € | H76: 2.50 | S76: 8 | T76: - Worst | AA76: 36.90
D77: kaas | G77: € | H77: 2.50 | S77: 9 | T77: - Kippenboutjes
D78: gekookte ham | G78: € | H78: 2.50 | S78: 10 | T78: - Gemarineerde kotelet
D79: américain préparé | G79: € | H79: 2.50 | S79: 11 | T79: - Lamskoteletjes
D80: krabsla | G80: € | H80: 2.50 | S80: 12 | T80: - Varkensbrochet
D81: kipsla | G81: € | H81: 2.50 | S81: 13 | T81: Koude aardappelen
S82: 14 | T82: Groenten en sausen
S83: 15
C84: uitgebreide fomule met toostjes in menuvorm (max 3uur) | S84: 16 | T84: Huiswijn, bieren en frisdranken als forfait | AA84: 3.80
C85: “3 koude voorgerechtjes” | S85: 17
C86: koud hapje met krabsla | S86: 18 | T86: Koffie 3 X bediend met koekjes | AA86: 3.90
C87: koud hapje met gerookte zalm
C88: koud hapje met grijze garnalen
C89: “soepje” | S89: 1 | T89: Dit menu kunt u samenstellen en wijzigen via de tool Barbecue's
C90: 1 mini soepje tomatenroom of vissoepje | S90: 2 | T90: Prijs per volwassene: | Z90: € 56.60
C91: “3 warme gerechtjes” | S91: 3
C92: kippenboutje | S92: 4 | T92: 1 aperitief per persoon | V92: vrije keuze | AA92: € 6.00
C93: mini loempia | S93: 5 | T93: Nootjes, chips en zoutkoekjes zoveel u wenst, per pers.
C94: mini croque monsieur | S94: 6
C95: “2 dessertjes” | S95: 7
C96: mini-brochetje met druifje, ananas en meloenbolletje | S96: 8 | T96: - Brochette met gepelde scampi's | AA96: 6.00
C97: mini confituurtaartje | S97: 9 | T97: - Stukje zalm en papillotte
S98: 10 | T98: - Worst | AA98: 36.90
S99: 11 | T99: - Lamskoteletjes
B100: Koude aardappelen | G100: inbegrepen | S100: 12 | T100: - Varkensbrochet
B101: Aardappel in de pel | G101: inbegrepen | S101: 13 | T101: Koude aardappelen
B102: 1/2 koude aardappelen en 1/2 aardappel in de pel | G102: inbegrepen | S102: 14 | T102: Groenten en sausen
B103: frietjes (supplement) | G103: 1.00 | S103: 15
S104: 16 | T104: Huiswijn, bieren en frisdranken als forfait | AA104: 3.80
B105: BBQ meer dan 5 soorten: per extra soort = | F105: € | G105: 4.00 | S105: 17
B106: Warme sausen bij BBQ 2 alleen vlees = | F106: € | G106: 2.50 | S106: 18 | T106: Koffie 3 X bediend met koekjes | AA106: 3.90
S108: 1 | T108: Dit menu kunt u samenstellen en wijzigen via de tool Barbecue's
S109: 2 | T109: Prijs per volwassene: | Z109: € 62.60
S110: 3
S111: 4 | T111: 2 aperitieven per persoon | W111: vrije keuze | AA111: € 12.00
A112: 1 | B112: Kies uit deze vleesspecialiteiten | D112: 1 | E112: supp. visgerechten / rund | S112: 5 | T112: Nootjes, chips en zoutkoekjes zoveel u wenst, per pers.
A113: 2 | B113: - Worst | D113: 2 | E113: - Brochette met gepelde scampi's | S113: 6
A114: 3 | B114: - Kippenboutjes | D114: 3 | E114: - Stukje zalm en papillotte | S114: 7
A115: 4 | B115: - Gemarineerde kotelet | D115: 4 | E115: - Stukje victoriabaarsfilet met fijne kruiden en papillotte | S115: 8 | T115: - Brochette met gepelde scampi's | AA115: 6.00
A116: 5 | B116: - Lamskoteletjes | D116: 5 | E116: - Forel met fijne groenten en papillotte | S116: 9 | T116: - Stukje zalm en papillotte
A117: 6 | B117: - Varkensbrochet | D117: 6 | E117: - Witte zalm in een jasje van ham | S117: 10 | T117: - Worst | AA117: 36.90
A118: 7 | B118: - Kasselrib | D118: 7 | E118: - Côte à l’os | S118: 11 | T118: - Lamskoteletjes
A119: 8 | B119: - Ribbetjes | D119: 8 | E119: - Steak | S119: 12 | T119: - Varkensbrochet
A120: 9 | B120: - Worst | S120: 13 | T120: Koude aardappelen
A121: 10 | B121: - Kippenboutjes | E121: U mag 2 warme sausen kiezen als u ook vis of rund kiest! | S121: 14 | T121: Groenten en sausen
E122: bearnaise | S122: 15
E123: romige portosaus | S123: 16 | T123: Huiswijn, bieren en frisdranken als forfait | AA123: 3.80
E124: pepersaus | S124: 17
E125: mosterd en look, | S125: 18 | T125: Koffie 3 X bediend met koekjes | AA125: 3.90
E126: champignonroomsaus
E127: kreeftsaus met groentebrunoise | S127: 1 | T127: Dit menu kunt u samenstellen en wijzigen via de tool Barbecue's
E128: kreeftsaus zonder groenten | S128: 2 | T128: Prijs per volwassene: | Z128: € 50.60
E129: saffraansaus | S129: 3
E130: bieslooksaus | S130: 4 | T130: 0 | AA130: € 0.00
S131: 5 | T131: en diverse warme en koude hapjes
B132: basisprijs | E132: sup. Tov basisprijs | H132: 1/2 warme kreeft i.p.v. 2 andere soorten | S132: 6 | T132: of Receptie E met aperitiefglaasjes
B133: 36.90 | E133: 6.00 | G133: supple: | H133: 5.00 | S133: 7
B134: Basisprijs BBQ | E134: sup vis | S134: 8 | T134: - Brochette met gepelde scampi's | AA134: 6.00
S135: 9 | T135: - Stukje zalm en papillotte
S136: 10 | T136: - Worst | AA136: 36.90
B137: Bio wijnen, bieren en frisdranken als forfait | M137: 0.00 | S137: 11 | T137: - Lamskoteletjes
S138: 12 | T138: - Varkensbrochet
B139: Huiswijn, bieren en frisdranken als forfait | M139: 3.80 | S139: 13 | T139: Koude aardappelen
B140: Domaine Joel Delauny Touraine en/of Château Reynier, Bordeaux superieur, bieren en frisdranken | M140: 8.00 | S140: 14 | T140: Groenten en sausen
S141: 15
S142: 16 | T142: Huiswijn, bieren en frisdranken als forfait | AA142: 3.80
B143: supplement per stukje gebak: | I143: 1.00 | S143: 17
S144: 18 | T144: Koffie 3 X bediend met koekjes | AA144: 3.90
B145: Nog geen dessert geselecteerd
B146: IJstaart ambachtelijk, speciale vorm, smaak naar keuze | I146: 6.00 | K146: Ijstaart met foto: 15 euro per foto (min personen). Speciale garnituren mits meerprijs mogelijk.
B147: Stel hieronder uw mini dessertbordje samen met minstens 4 dessertjes | I147: 4.00 | K147: Keuze: Roomijs en/of Bruine chocolademousse en/of Pasteis de nata en/of | L147: Chocoladebavarois en/of Miserable en/of glaasje fruitsla met perensorbet en/of | M147: Witte chocolademousse en/of Roomsoes met warme chocoladesaus en/of Tiramisu en/of | N147: Javanais en/of Gebak peer-caramel en/of mini fruittaartje. | S147: 1 | T147: Dit menu kunt u samenstellen en wijzigen via de tool Barbecue's
B148: Coupe met vers fruit en verse slagroom. | I148: 4.00 | K148: Vanilleijs, vers fruit en verse slagroom | S148: 2 | T148: Prijs per volwassene: | Z148: € 51.60
B149: Aardbeiensoepje met sinaasappel in seizoen | I149: 4.00 | K149: Sinaasappelsap met grand marnier en daarin vers gesneden aardbeien (alleen in seizoen) | S149: 3
B150: Coupe met aardbeien en verse slagroom. | I150: 4.00 | K150: Vanilleijs, verse aardbeien en verse slagroom | S150: 4 | T150: 1 aperitief per persoon | V150: vrije keuze | AA150: € 6.00
B151: Dame blanche | I151: 6.00 | K151: Vanilleijs, verse slagroom,warme chocoladesaus. | S151: 5 | T151: Nootjes, chips en zoutkoekjes zoveel u wenst, per pers.
B152: - frambozentaart | I152: 6.00 | K152: De lekkerste van alle gebakjes. | S152: 6
B153: - progres | I153: 6.00 | K153: Een klassieker. | S153: 7
B154: - fruitgebakje | I154: 6.00 | K154: Klein maar fijn gebakje | S154: 8 | T154: - Worst | AA154: 36.90
B155: - biscuit crème fraiche met coulis | I155: 4.00 | K155: Vrij groot stuk met slagroom. Foto op de taart: suppl. € 1 per stuk taart en € 12 per foto | S155: 9 | T155: - Kippenboutjes
B156: - warme appeltaart met een bolletje ijs | I156: 4.00 | K156: Hier heb je zowel gebak als vanilleijs. | S156: 10 | T156: - Gemarineerde kotelet
B157: - zwarte woudtaart | I157: 6.00 | K157: Biscuit met cacaopoeder in een tasje. | S157: 11 | T157: - Lamskoteletjes
B158: Sabayon met rood fruit | I158: 4.00 | K158: Sabayon, fruit en ijs | S158: 12 | T158: - Varkensbrochet
S159: 13 | T159: frietjes (supplement) | AA159: 1.00
B160: Basis dessertbuffet met: | I160: 11.00 | K160: vers fruit, verschillende soorten sorbet, chocolademousse, roomijs | L160: variatie van miserable, javanais, pasteis de nata, roomsoes, speculoostaart, | M160: De samenstelling van het buffet kan verschillen, naargelang de grootte van de groep | P160: Belangrijk: De prijs van dit dessertbuffet geldt alleen indien voorafgegaan door een maaltijd!! | S160: 14 | T160: Groenten en sausen
B161: Uitgebreid dessertbuffet met: | I161: 14.50 | K161: vers fruit, verschillende soorten sorbet, chocolademousse, roomijs | L161: variatie van miserable, javanais, pasteis de nata, roomsoes, speculoostaart, | M161: De samenstelling van het buffet kan verschillen, naargelang de grootte van de groep | N161: assortiment van mini-bavarois (framboos-passie-zwarte woud-pistache-chocolade praliné) | P161: Belangrijk: De prijs van dit dessertbuffet geldt alleen indien voorafgegaan door een maaltijd!! | S161: 15
B162: Uitgebreid en luxueus dessertbuffet met: | I162: 18.00 | K162: vers fruit, verschillende soorten sorbet, chocolademousse, roomijs | L162: variatie van miserable, javanais, pasteis de nata, roomsoes, speculoostaart, | M162: De samenstelling van het buffet kan verschillen, naargelang de grootte van de groep | N162: assortiment van mini-bavarois (framboos-passie-zwarte woud-pistache-chocolade praliné) | O162: dessertglaasjes (framboos-amandel - trio chocolade - mango-caramel - chocolade praliné) | P162: Belangrijk: De prijs van dit dessertbuffet geldt alleen indien voorafgegaan door een maaltijd!! | S162: 16 | T162: Huiswijn, bieren en frisdranken als forfait | AA162: 3.80
S163: 17
S164: 18 | T164: Koffie 3 X bediend met koekjes | AA164: 3.90
S166: 1 | T166: Dit menu kunt u samenstellen en wijzigen via de tool Barbecue's
S167: 2 | T167: Prijs per volwassene: | Z167: € 57.60
S168: 3
B169: Nog geen keuze gemaakt | S169: 4 | T169: 2 aperitieven per persoon | W169: vrije keuze | AA169: € 12.00
B170: Koffie 3 X bediend | H170: € | I170: 2.90 | S170: 5 | T170: Nootjes, chips en zoutkoekjes zoveel u wenst, per pers.
B171: Koffie 3 X bediend met koekjes | H171: € | I171: 3.90 | S171: 6
B172: Koffie 3 X bediend met pralines | H172: € | I172: 4.40 | S172: 7
S173: 8 | T173: - Worst | AA173: 36.90
S174: 9 | T174: - Kippenboutjes
S175: 10 | T175: - Gemarineerde kotelet
A176: Alle drank na de maaltijd komt op één rekening en wordt door de organisator van het feest betaald | P176: één rekening | S176: 11 | T176: - Lamskoteletjes
A177: Elke gast die na de maaltijd een drankje bestelt rekent direct af aan de bar | P177: direct afrekenen | S177: 12 | T177: - Varkensbrochet
A178: Forfait voor drank naar believen (alle bieren en frisdranken van de drankkaart in de zaal) na een maaltijd. pp: | O178: 18.20 | P178: 18.20 | S178: 13 | T178: frietjes (supplement) | AA178: 1.00
A179: Indien er geen volwaardige maaltijd wordt genomen, dienen er minstens 4 belegde broodjes genomen te worden en verhoogt het drankforfait tot € 28,00 | S179: 14 | T179: Groenten en sausen
A180: 's middags tot 21 u - 's avonds onbeperkt. Let op! Artikel 8 van de verkoopsvoorwaarden (zie laatste bladzijde) kan hier van toepassing zijn !!!! | S180: 15
S181: 16 | T181: Huiswijn, bieren en frisdranken als forfait | AA181: 3.80
A182: Neem contact op met de zaakvoerder op tel nr 0475/618058 | P182: x | S182: 17
A183: om hier zeker geen misverstanden over te hebben! | S183: 18 | T183: Koffie 3 X bediend met koekjes | AA183: 3.90
S185: 1 | T185: Dit menu kunt u samenstellen en wijzigen via de tool Barbecue's
A186: Verbruik van DJ ten laste van de klant | S186: 2 | T186: Prijs per volwassene: | Z186: € 45.60
S187: 3
A188: Voor onze vegetarische klanten: | S188: 4 | T188: 0 | AA188: € 0.00
S189: 5 | T189: en diverse warme en koude hapjes
A190: - Voor onze vegetarische klanten bereiden wij graag een aparte schotel. | S190: 6 | T190: of Receptie E met aperitiefglaasjes
A191: Wij vragen wel met aandrang om op voorhand te melden als er vegetariërs zijn. | S191: 7
A192: Zij eten mee aan de prijs van de rest van de groep. | S192: 8 | T192: - Worst | AA192: 36.90
S193: 9 | T193: - Kippenboutjes
S194: 10 | T194: - Gemarineerde kotelet
S195: 11 | T195: - Lamskoteletjes
S196: 12 | T196: - Varkensbrochet
A197: Mensen met een speciaal dieet: | S197: 13 | T197: frietjes (supplement) | AA197: 1.00
S198: 14 | T198: Groenten en sausen
A199: Wij houden rekening met speciale wensen van mensen die een dieet volgen, | S199: 15
A200: maar alleen indien op voorhand gemeld. | S200: 16 | T200: Huiswijn, bieren en frisdranken als forfait | AA200: 3.80
S201: 17
A202: Halal kan ook, onder toezicht van een moslim bereid. | S202: 18 | T202: Koffie 3 X bediend met koekjes | AA202: 3.90
A204: ja
A205: nee | S205: 1 | T205: Dit menu kunt u samenstellen en wijzigen via de tool Barbecue's
S206: 2 | T206: Prijs per volwassene: | Z206: € 57.60
S207: 3
S208: 4 | T208: 1 aperitief per persoon | V208: vrije keuze | AA208: € 6.00
S209: 5 | T209: Nootjes, chips en zoutkoekjes zoveel u wenst, per pers.
S210: 6
S211: 7
S212: 8 | T212: - Brochette met gepelde scampi's | AA212: 6.00
... 286 more rows

Sheet Algemene verkoopsvoorwaarden
A1: Algemene verkoopsvoorwaarden vanaf 01/11/2022:
A3: 1) Onze facturen zijn contant te betalen bij levering van de goederen, dit is de dag van het event. Bijgevolg zal in geval van laattijdige betaling van rechtswege en zonder voorafgaande ingebrekestelling een intrest aangerekend worden van 12% per jaar op de bedragen, verschuldigd acht dagen na de vervaldag van de facturen. Tevens zal bij gebrek aan betaling na aanmaning bij gewone brief, het verschuldigde bedrag van rechtswege verhoogd worden met een forfaitaire vergoeding van 12 % met een minimum van € 50 voor bijkomende administratieve kosten, debiteurenbewaking en commerciële stoornissen. Wij behouden ons het recht voor op elk moment de leveringen te staken. Elke klacht over de kwaliteit van de geleverde goederen moet uiterlijk 24 uur na de levering worden overgemaakt.
A4: Klachten in verband met facturatie kunnen slechts in aanmerking worden genomen zo zij binnen de acht dagen na ontvangst van de goederen bij aangetekende brief worden meegedeeld. In geval van betwisting zijn uitsluitend de rechtbanken van Kortrijk bevoegd. De leveringen geschieden op risico van de bestemmeling. Er wordt uitdrukkelijk overeengekomen dat de klant door het plaatsen van een bestelling onze algemene verkoopsvoorwaarden erkent. Elke wijziging hieraan moet voorafgaandelijk in een schriftelijk akkoord worden vastgelegd.
A6: 2) Annulatie dient schriftelijk en gedateerd te geschieden.
A7: In geval van annulatie minder dan 60 dagen voor de activiteit blijft het voorschot eigendom van het Katelijnenhof. Voor annulatie minder dan 10 dagen voor de activiteit is de klant in alle gevallen verplicht 35 % van de reservatie waarde van de gehele manifestatie te vergoeden. Bij annulatie minder dan 5 dagen voor de activiteit is de klant in alle gevallen verplicht de reservatie waarde van de gehele manifestatie te vergoeden.
A9: 3) Iedere levering van dranken, voedingswaren of diensten in de zalen is uitsluitend voorbehouden aan het Katelijnenhof, tenzij er een andere schriftelijke overeenkomst is.
A11: 4) De klant is eraan gehouden voor iedere dansavond met groot orkest een aanvraag tot toelating in te dienen bij SABAM, Rijselsestraat 51, 8500 Kortrijk, Tel : 056/210738 en alle kosten voortvloeiend uit deze aanvraag te dragen. Voor een gewone disc-jockey betalen wij jaarlijks een vaste bijdrage. Het verbruik (drank en voeding) van de DJ is ten laste van de klant. Gelet op de nieuwe geluidsnormen, van kracht op 01/01/2013, moet de klant de DJ of elke andere persoon of toestel dat geluid produceert verplichten zich aan deze normen te houden. De toelating voor onze zaal is – maximaal geluidsniveau > 85 dB(A) LAeq,15min en ≤ 95 dB(A) LAeq,15min. Dit is ruim voldoende. Alle boetes ten gevolge een overschrijding van deze voorwaarde zijn ten laste van de klant. Er wordt een professionele houding van elke DJ of geluidstechnicus verwacht.
A12: Het is niet toegestaan om muziek af te spelen via B2C diensten zoals Spotify, Deezer, Youtube… Dit geldt voor elke horecazaak, winkel enz… Doet de klant of zijn DJ dat toch en er volgt een boete, dan is deze ten laste van de klant.
A14: 5) Alle door de klant meegebrachte materiaal dient door de klant te worden verzekerd en direct na het beëindigen van de manifestatie te worden verwijderd uit de zaal. Het Katelijnenhof behoudt het recht de leverancier te aanvaarden en voorschriften te geven om de lokalen ongeschonden te behouden. Het is strikt verboden om versieringen aan de muren of plafonds te bevestigen met duimspijkers of kleefband ! Bij beschadigingen van een deel van de muur wordt het geheel als beschadigd beschouwd.
A16: 6) Het gebruik van de zaal is strikt beperkt tot de in deze overeenkomst vastgestelde functie. Iedere wijziging in de voorheen verklaarde bestemming brengt automatisch het recht tot prijsherziening met zich mee.
A18: 7) Het gebruik van de zaal is gratis van zodra het verbruik hoger ligt dan € 1250. Indien het verbruik lager ligt, wordt het factuurbedrag opgetrokken tot € 1250. Indien uw feest cash (max € 3000) of met bancontact betaald wordt op de dag zelf krijgt u een korting van 2 % op de gehele factuur. Voor traiteurdienst gelden andere kortingsregels.
A20: 8) Sluitingsuren zaal:
A22: In geval van een event dat start ’s morgens start tussen 7u en 10u59 (vb. ontbijt)
A23: Event kan maximaal 6 uur duren.
A25: In geval van een event dat start op de middag start tussen 11u en 13u59
A26: De bar sluit om 18u00, de zaal sluit om 18u30.
A28: In geval van een event dat start in de namiddag start tussen 14u en 17u59 (vb. babyborrel)
A29: Event kan maximaal 6 uur duren.
A31: In geval van een event dat start ’s avonds start vanaf 18u
A32: De bar sluit om 2u30, de zaal sluit om 3u.
A34: Indien het event toch langer uitloopt dan het sluitingsuur wordt per begonnen uur een toeslag van € 125,00 (btw incl.) aangerekend. Geen enkel drankenforfait geldt dan nog.
A36: 9) De klant is verantwoordelijk voor de goede orde in en rond de feestzaal. Schade veroorzaakt door een der aanwezigen kan verhaald worden op deze persoon maar als deze om gelijk welke reden de schade niet kan vergoeden (vb: te weinig financiële middelen of de veroorzaker is onbekend) kan deze schade eveneens ondeelbaar worden verhaald op de klant , zijnde de persoon die het feest heeft besteld.
A38: 10) Energietoeslag. De energieprijzen zijn momenteel op hol geslagen. Het kan zijn dat wij genoodzaakt zijn een energietoeslag voor het gebruik van de zaal aan te rekenen. U wordt in voorkomend geval op voorhand verwittigd en mag uw feest kosteloos annuleren indien u deze niet wenst te betalen.

Sheet Reservatievoorstel
C1: ="Reservatievoorstel. "&matrixen!B1 -> Reservatievoorstel. Prijzen geldig tot 31/03/2023 | K1: Uitsplitsing per BTW tarief. | P1: Totaalprijs per vol: | Q1: =E9 -> 40.70
A2: Naam Klant: | C2: ='selecteer hier uw barbecue'!F74 -> 0 | G2: Katelijnenhof | P2: =IF(Q2>0,"Prijs drankforfait na de maaltijd 21% BTW:","") ->  | Q2: ='selecteer hier uw barbecue'!D58 -> 0.00
A3: Adres: | C3: ='selecteer hier uw barbecue'!F75 -> 0 | G3: Heirweg 172 | M3: Menu | O3: Dep. B | P3: =IF(Q2>0,"Drank- forfait:","") ->  | Q3: Totaal aan 21% | R3: Dep. A
A4: Stad: | C4: ='selecteer hier uw barbecue'!F76 -> 0 | G4: 8800 Roeselare | K4: aantal | L4: totaal: | M4: deel 12 % | N4: deel 21%
A5: Tel nr: | C5: ='selecteer hier uw barbecue'!F77 -> 0 | G5: info@katelijnenhof.be | J5: Vol | K5: =D9 -> 10 | L5: =Q1-Q2 -> 40.70 | M5: =ROUND(L5*0.65,2) -> 26.46 | N5: =L5-M5 -> 14.24 | O5: =K5*M5 -> 264.60 | P5: =Q2 -> 0.00 | Q5: =N5+P5 -> 14.24 | R5: =K5*Q5 -> 142.40
A6: ='selecteer hier uw barbecue'!E79 -> reden feest: | C6: ='selecteer hier uw barbecue'!F79 -> 0 | G6: Gsm 0475/618058 | J6: JR 1/2 | K6: =D10 -> 0 | L6: =E10-P6 -> 20.35 | M6: =ROUND(L6*0.65,2) -> 13.23 | N6: =L6-M6 -> 7.12 | O6: =K6*M6 -> 0.00 | P6: =ROUND(Q2/2,2) -> 0.00 | Q6: =N6+P6 -> 7.12 | R6: =K6*Q6 -> 0.00
A7: Datum activiteit: | C7: ='selecteer hier uw barbecue'!F64 -> 00:00:00 | D7: ='selecteer hier uw barbecue'!E78 -> email: | E7: ='selecteer hier uw barbecue'!F78 -> 0 | H7: aankomst om: | I7: ='selecteer hier uw barbecue'!F71 -> 0 | J7: JR 1/3 | K7: =D11 -> 0 | L7: =E11-P7 -> 13.57 | M7: =ROUND(L7*0.65,2) -> 8.82 | N7: =L7-M7 -> 4.75 | O7: =K7*M7 -> 0.00 | P7: =ROUND(Q2/3,2) -> 0.00 | Q7: =N7+P7 -> 4.75 | R7: =K7*Q7 -> 0.00
A8: Totaal aantal personen: | D8: =D9+D10+D11+D12 -> 10 | E8: prijs: | H8: aan tafel om: | I8: ='selecteer hier uw barbecue'!F72 -> 0 | J8: JR gratis | K8: =D12 -> 0 | L8: =E12 -> 0,00 | M8: =L8*0.65 -> 0 | N8: =L8*0.35 -> 0.00 | O8: =K8*M8 -> 0.00 | Q8: =N8+P8 -> 0 | R8: =K8*Q8 -> 0.00
C9: volwassenen: | D9: ='selecteer hier uw barbecue'!F66 -> 10 | E9: ='selecteer hier uw barbecue'!D7 -> 40.70 | H9: raming totaal 1: | I9: =D9*E9+D10*E10+D11*E11+D12*E12+D13 -> € 407.00 | L9: Voorschot reeds betaald: | P9: =IF(Q9>0,"Huur zaal/exclusiviteit: ","") -> Huur zaal/exclusiviteit: | Q9: =I11+I12 -> 843.00
C10: JR 1/2 (6 t.e.m. 11) : | D10: ='selecteer hier uw barbecue'!F67 -> 0 | E10: ='selecteer hier uw barbecue'!J7 -> 20.35 | H10: ander rekenblad: | I10: ='selecteer hier uw barbecue'!F81 -> € 0.00 | L10: Gestort / betaald op:
C11: JR 1/3 (3 t.e.m. 5) : | D11: ='selecteer hier uw barbecue'!F68 -> 0 | E11: ='selecteer hier uw barbecue'!H7 -> 13.57 | H11: huur zaal: | I11: =IF(D9+D10+D11+D12=0,0,IF((I9+I10)<matrixen!E4,matrixen!E4-I9-I10,0)) -> € 843.00 | L11: =IF(M9>0,"Voorschot uitgesplitst:","") ->  | M11: =IF(M9>0," € "&M9*0.65 & " x 12% => Dep. B en € " & M9*0.35 & " x 21% => Dep. A.","") -> 
C12: JR gratis (0 t.e.m. 2) : | D12: ='selecteer hier uw barbecue'!F69 -> 0 | E12: ='selecteer hier uw barbecue'!F7 -> 0,00 | H12: =IF(I12>0,"U koos exclusiviteit: ","") ->  | I12: ='selecteer hier uw barbecue'!L87 -> € 0.00 | M12: Voorschot wordt gesplitst over: | N12: =IF(M9>0,ROUNDUP((M9+1)/L5,0),0) -> 0 | O12: volwassenen
H13: raming algemeen totaal: | I13: =I9+I10+I11+I12 -> € 1,250.00 | J13: Input GKS: | M13: =IF(M9*0.65 >N12*M5,"ONMOGELIJK U bekomt negatieve waarden.","") -> 
H14: raming te betalen indien contante betaling (max € 3000 cash): | I14: ='selecteer hier uw barbecue'!F86 -> € 1,225.00 | J14: =N12 -> 0 | K14: vol | L14: x | M14: =IFERROR(M5-M9*0.65/N12,"") ->  | N14: 12% | O14: =IFERROR(J14*M14,"") ->  | P14: Dep. B | Q14: Verwerking voorschot
D15: Voorkeur tafelschikking: | E15: ='selecteer hier uw barbecue'!K88 -> geen voorkeur | J15: =IFERROR( " Er wordt € " & ROUND(M9*0.65/N12,2) & " minder geboekt bij " & N12 & " personen omdat dit reeds als voorschot werd geboekt.","") -> 
I16: ='selecteer hier uw barbecue'!B20 -> De gast die een extra aperitief bestelt betaalt deze zelf | J16: =N12 -> 0 | K16: vol | L16: x | M16: =IFERROR(Q5-M9*0.35/N12,"") ->  | N16: 21% | O16: =IFERROR(J16*M16,"") ->  | P16: Dep. A | Q16: Verwerking voorschot
A17: ='selecteer hier uw barbecue'!H65 ->  | I17: =IF(M9>0," Uw voorschot van € " & M9 & " wordt nog in mindering gebracht","") ->  | J17: =IFERROR( " Er wordt € " & ROUND(M9*0.35/N12,2) & " minder geboekt bij " & N12 & " personen omdat dit reeds als voorschot werd geboekt.","") -> 
A18: ='selecteer hier uw barbecue'!H66 ->  | I18: ='selecteer hier uw barbecue'!G62 -> Keuze achtergrondmuziek: | J18: =K5-J14 -> 10 | K18: =K14 -> vol | L18: x | M18: =M5 -> 26.46 | N18: =N14 -> 12% | O18: =J18*M18 -> 264.60 | P18: Dep. B
A19: ='selecteer hier uw barbecue'!H67 -> 0 | I19: ='selecteer hier uw barbecue'!H62 -> Geen voorkeur | J19: =K5-J16 -> 10 | K19: =K16 -> vol | L19: x | M19: =Q5 -> 14.24 | N19: 21% | O19: 142.40 | P19: Dep. A
A20: ='selecteer hier uw barbecue'!H71 -> 0 | I20: =VLOOKUP(I19,matrixen!A500:B523,2,FALSE) -> 0 | J20: =K6 -> 0 | K20: =J6 -> JR 1/2 | L20: x | M20: =M6 -> 13.23 | N20: =N14 -> 12% | O20: 0.00 | P20: Dep. B
C21: Barbecue met: | J21: =K6 -> 0 | K21: =J6 -> JR 1/2 | L21: x | M21: =Q6 -> 7.12 | N21: 21% | O21: 0.00 | P21: Dep. A
A22: ='selecteer hier uw barbecue'!H69 -> Aardappel in de pel | J22: =K7 -> 0 | K22: =J7 -> JR 1/3 | L22: x | M22: =M7 -> 8.82 | N22: =N14 -> 12% | O22: 0.00 | P22: Dep. B
A23: ='selecteer hier uw barbecue'!H70 -> groenten en sausen | D23: =IF('selecteer hier uw barbecue'!F33='selecteer hier uw barbecue'!AA40,"Als voorgerecht een halve kreeft met kruidenboter","") ->  | J23: =K7 -> 0 | K23: =J7 -> JR 1/3 | L23: x | M23: =Q7 -> 4.75 | N23: 21% | O23: 0.00 | P23: Dep. A
J24: =IF(L24>0,"1",0) -> 1 | K24: =IF(L24>0,"x","") -> x | L24: =Q9 -> 843.00 | M24: =IF(L24>0,"21%","") -> 21% | N24: =IF(L24>0,"Dep. A","") -> Dep. A | O24: =P9 -> Huur zaal/exclusiviteit:
A25: ='selecteer hier uw barbecue'!J74 ->  | I25: ='selecteer hier uw barbecue'!H74 ->  | K25: Totale boekwaarde: | L25: =SUM(O14:O23)+L24+M9+I10 -> 1250.00 | M25: =IF(SUM(O14:O23)+L24+M9+I10 <>I13," Er is iets fout met de splitsingstabel","") -> 
A26: ='selecteer hier uw barbecue'!J75 ->  | I26: ='selecteer hier uw barbecue'!H75 ->  | J26: ="De eventuele korting contant van 2 %, in het huidig voorstel is dit € " & ROUND(I13-I14,2) & " is nog niet in bovenstaande splitsing verwerkt." -> De eventuele korting contant van 2 %, in het huidig voorstel is dit € 25 is nog niet in bovenstaande splitsing verwerkt.
A27: ='selecteer hier uw barbecue'!J76 ->  | I27: ='selecteer hier uw barbecue'!H76 -> 
A28: ='selecteer hier uw barbecue'!J77 ->  | I28: ='selecteer hier uw barbecue'!H77 ->  | J28: =IF(J29<>"","Detail van het aperitief:","") ->  | P28: ='selecteer hier uw barbecue'!F18 -> 0
A29: ='selecteer hier uw barbecue'!J78 ->  | I29: ='selecteer hier uw barbecue'!H78 ->  | J29: =A17 ->  | M29: ='selecteer hier uw barbecue'!F15 -> 0 | P29: ='selecteer hier uw barbecue'!F19 -> 0
J30: ='selecteer hier uw barbecue'!F13 -> 0 | M30: ='selecteer hier uw barbecue'!F16 -> 0 | P30: ='selecteer hier uw barbecue'!F20 -> 0
A31: ='selecteer hier uw barbecue'!L72 -> 0 | I31: ='selecteer hier uw barbecue'!L73 -> 0 | J31: ='selecteer hier uw barbecue'!F14 -> 0 | M31: ='selecteer hier uw barbecue'!F17 -> 0 | P31: ='selecteer hier uw barbecue'!F21 -> 0
J32: ='selecteer hier uw barbecue'!G24 -> 
A33: ='selecteer hier uw barbecue'!H80 -> Huiswijn, bieren en frisdranken als forfait | J33: ='selecteer hier uw barbecue'!G13 -> 0
A34: ='selecteer hier uw barbecue'!H81 ->  | J34: ='selecteer hier uw barbecue'!G14 -> 0
A35: ='selecteer hier uw barbecue'!H82 ->  | J35: ='selecteer hier uw barbecue'!G15 -> 0 | Q35: ='selecteer hier uw barbecue'!F24 -> 0
A36: ='selecteer hier uw barbecue'!B62 -> Elke gast die na de maaltijd een drankje bestelt rekent direct af aan de bar | J36: ='selecteer hier uw barbecue'!G16 -> 0
A37: ='selecteer hier uw barbecue'!K90 -> Betaling op de dag zelf (cash of bancontact), u bekomt 2% korting op het totaal | J37: ='selecteer hier uw barbecue'!G17 -> 0
J38: ='selecteer hier uw barbecue'!G18 -> 0
A39: Vegetariërs: | B39: ='selecteer hier uw barbecue'!G58 -> nee | D39: Speciale dieten: | E39: ='selecteer hier uw barbecue'!I58 -> nee | H39: Feest met discobar: | I39: ='selecteer hier uw barbecue'!G60 -> nee | J39: ='selecteer hier uw barbecue'!G19 -> 0
A40: Factuur: | B40: ='selecteer hier uw barbecue'!K92 -> nee | D40: Halal bereidingen: | E40: ='selecteer hier uw barbecue'!K58 -> nee | H40: ='selecteer hier uw barbecue'!H60 -> Allergenen: | I40: ='selecteer hier uw barbecue'!I60 -> nee | J40: ='selecteer hier uw barbecue'!G20 -> 0
A41: ="Opmerking: " &'selecteer hier uw barbecue'!F80 -> Opmerking: | J41: ='selecteer hier uw barbecue'!G21 -> 0
J42: ='selecteer hier uw barbecue'!G22 -> 0
J43: ='selecteer hier uw barbecue'!G23 -> 0
J44: =IF(A34<>"","Detail van het dessert:","") -> 
A45: Het juiste aantal EN de gewenste tafelschikking moet ons meegedeeld worden ten laatste op: | I45: =C7-9 -> -9 | J45: =IF('selecteer hier uw barbecue'!$B$49=matrixen!$B$147,'selecteer hier uw barbecue'!B52& ", "& 'selecteer hier uw barbecue'!B53,'selecteer hier uw barbecue'!F49) -> 0
A46: Wijzigingen na deze datum van aantal en/of tafelschikking hebben prijsherzieningen tot gevolg! | J46: =IF('selecteer hier uw barbecue'!$B$49=matrixen!$B$147,'selecteer hier uw barbecue'!B54& ", "& 'selecteer hier uw barbecue'!B55,'selecteer hier uw barbecue'!F50) -> 0
A47: Dit aantal geldt als minimum voor facturatie. Verdere verkoopsvoorwaarden op een ander werkblad. | J47: =IF('selecteer hier uw barbecue'!$B$49=matrixen!$B$147,'selecteer hier uw barbecue'!B56& ", "& 'selecteer hier uw barbecue'!B57,'selecteer hier uw barbecue'!F51) -> 0
A48: Vergeet ze niet te lezen. | H48: Gaat u akkoord met de algemene verkoopsvoorwaarden? | I48: ='selecteer hier uw barbecue'!K86 -> ja | J48: =IF('selecteer hier uw barbecue'!$B$49=matrixen!$B$147,'selecteer hier uw barbecue'!B58,'selecteer hier uw barbecue'!F52) -> 0
A49: Handtekening der beide partijen voor akkoord: | J49: ='selecteer hier uw barbecue'!F53 -> 0
C50: De klant | H50: Het Katelijnenhof | J50: ='selecteer hier uw barbecue'!F54 -> 0
J52: =IF(OR('selecteer hier uw barbecue'!B71<>"",'selecteer hier uw barbecue'!B72<>"",'selecteer hier uw barbecue'!B73<>"",'selecteer hier uw barbecue'!B74<>""),"U koos volgende late night snacks:","") -> 
J53: ='selecteer hier uw barbecue'!B71 -> 0
J54: ='selecteer hier uw barbecue'!B72 -> 0
J55: ='selecteer hier uw barbecue'!B73 -> 0
J56: ='selecteer hier uw barbecue'!B74 -> 0
